bitfinex/quotes_SOLUSD_20260304
["timestamp","ask_amount","ask_price","bid_price","bid_amount"]
[1772659977723,2.5943894,92.493,92.431,2.42046182]
[1772659979130,0.28432314,92.486,92.433,2.42046182]
[1772659979317,2.5943894,92.485,92.433,2.42046182]
[1772659980634,2.5943894,92.491,92.441,2.42046182]
[1772659981212,2.5943894,92.489,92.443,2.42046182]
[1772659981409,2.5943894,92.485,92.442,10.81759373]
[1772659982110,2.5943894,92.485,92.439,2.42046182]
[1772659985041,37.84438389,92.484,92.44,10.81782778]
[1772659985235,37.84438389,92.484,92.441,2.42046182]
[1772659985236,2.5943894,92.483,92.441,2.42046182]
[1772659986646,10.81268111,92.484,92.441,2.42046182]
[1772659986824,13.40654873,92.489,92.444,2.42046182]
[1772659987341,2.5943894,92.488,92.446,2.42046182]
[1772659987639,2.5943894,92.488,92.447,0.28432314]
[1772659987818,2.5943894,92.494,92.45,2.42046182]
[1772659988948,2.5943894,92.507,92.45,2.42046182]
[1772659989324,2.5943894,92.505,92.451,37.85789228]
[1772659989524,2.5943894,92.505,92.452,2.42046182]
[1772659992155,2.5943894,92.505,92.451,37.85789228]
[1772659992156,2.5943894,92.503,92.454,2.42046182]
[1772659994934,2.5943894,92.503,92.456,2.42046182]
[1772659995137,2.5943894,92.501,92.456,2.42046182]
[1772659996934,2.5943894,92.499,92.458,2.42046182]
[1772659999761,2.43988391,92.497,92.46,2.60426321]
[1772660001641,2.43988391,92.497,92.459,10.81560475]
[1772660002346,2.43988391,92.485,92.438,10.81806183]
[1772660002659,2.43988391,92.475,92.434,0.40144857]
[1772660003162,2.43988391,92.475,92.434,13.82416486]
[1772660003663,2.43988391,92.475,92.434,13.42271629]
[1772660004862,2.43988391,92.473,92.435,2.60426321]
[1772660006057,2.43988391,92.473,92.428,2.4072539]
[1772660007467,2.54299273,92.471,92.43,2.4072539]
[1772660011466,2.54299273,92.469,92.432,2.4072539]
[1772660016386,2.54299273,92.467,92.434,2.4072539]
[1772660018291,37.8517509,92.466,92.434,2.4072539]
[1772660018483,2.54299273,92.465,92.434,2.4072539]
[1772660019402,2.54299273,92.465,92.428,2.4072539]
[1772660019570,2.54299273,92.465,92.414,2.4072539]
[1772660020687,2.54299273,92.478,92.42,2.4072539]
[1772660021887,13.35687805,92.474,92.422,2.4072539]
[1772660022296,2.54299273,92.473,92.422,2.4072539]
[1772660024797,2.54299273,92.471,92.424,2.4072539]
[1772660027383,2.54299273,92.469,92.426,2.4072539]
[1772660031605,2.486269,92.467,92.428,2.52295813]
[1772660037200,2.486269,92.467,92.43,2.52295813]
[1772660039005,2.486269,92.465,92.432,2.52295813]
[1772660041406,2.486269,92.465,92.434,2.52295813]
[1772660045607,10.81457442,92.468,92.41,0.1]
[1772660045608,2.486269,92.463,92.436,2.52295813]
[1772660046789,2.486269,92.463,92.437,10.81817886]
[1772660046986,2.486269,92.461,92.411,13.34418071]
[1772660047391,2.486269,92.447,92.41,0.1]
[1772660047592,2.486269,92.445,92.412,2.52295813]
[1772660049020,54.06236772,92.486,92.412,2.52295813]
[1772660049021,2.486269,92.443,92.412,2.52295813]
[1772660049417,2.486269,92.443,92.414,2.52295813]
[1772660050209,2.486269,92.443,92.41,0.1]
[1772660050434,2.486269,92.443,92.412,2.52295813]
[1772660051599,2.486269,92.443,92.41,0.1]
[1772660051600,10.81759373,92.442,92.414,2.52295813]
[1772660051817,2.486269,92.441,92.414,2.52295813]
[1772660053630,2.486269,92.441,92.416,2.52295813]
[1772660054617,2.486269,92.439,92.416,2.52295813]
[1772660055613,2.486269,92.437,92.416,2.52295813]
[1772660058832,2.46992158,92.435,92.411,10.82115387]
[1772660061132,2.46992158,92.433,92.41,2.57273636]
[1772660062738,104.9,92.454,92.411,2.47273636]
[1772660062938,115.71625371,92.454,92.411,2.47273636]
[1772660063138,115.71625371,92.454,92.413,2.47273636]
[1772660064745,2.46992158,92.453,92.413,2.47273636]
[1772660065641,10.81642365,92.452,92.414,10.82087129]
[1772660065827,10.81642365,92.452,92.415,2.61268823]
[1772660066544,2.57318985,92.451,92.415,2.61268823]
[1772660067549,2.57318985,92.449,92.417,2.61268823]
[1772660070653,2.57318985,92.447,92.419,2.61268823]
[1772660070950,2.57318985,92.452,92.419,2.61268823]
[1772660073659,2.57318985,92.45,92.421,2.61268823]
[1772660076455,10.81677465,92.449,92.422,10.81993464]
[1772660076751,2.57318985,92.448,92.423,2.61268823]
[1772660079565,2.57318985,92.446,92.423,2.61268823]
[1772660082068,2.57318985,92.444,92.414,2.61268823]
[1772660082361,2.57318985,92.444,92.413,10.82098838]
[1772660083672,2.57318985,92.444,92.413,13.43367661]
[1772660084467,2.57318985,92.442,92.413,2.61268823]
[1772660085158,2.57318985,92.442,92.41,0.1]
[1772660085740,2.57318985,92.442,92.411,10.82122258]
[1772660086665,2.57318985,92.44,92.411,10.82122258]
[1772660087560,2.57318985,92.44,92.41,0.1]
[1772660088566,2.53499209,92.436,92.4,0.1]
[1772660088771,2.53499209,92.434,92.4,0.1]
[1772660091067,2.53499209,92.432,92.4,0.1]
[1772660094457,2.53499209,92.43,92.4,0.1]
[1772660094658,2.53499209,92.428,92.39,0.1]
[1772660094865,37.86608388,92.431,92.356,0.35497335]
[1772660094866,2.53499209,92.416,92.371,2.58130236]
[1772660097759,2.53499209,92.414,92.373,2.58130236]
[1772660100265,104.9,92.43,92.348,10.8285152]
[1772660100266,2.53499209,92.406,92.348,10.8285152]
[1772660100469,2.53499209,92.406,92.352,10.82812699]
[1772660100664,2.53499209,92.406,92.351,2.58130236]
[1772660101061,0.28432314,92.391,92.351,2.58130236]
[1772660101268,2.53499209,92.415,92.362,2.58130236]
[1772660102476,2.53499209,92.413,92.364,2.58130236]
[1772660103165,0.28432314,92.41,92.364,2.58130236]
[1772660103366,2.53499209,92.409,92.364,2.58130236]
[1772660104582,2.53499209,92.407,92.364,2.58130236]
[1772660105183,2.53499209,92.407,92.366,2.58130236]
[1772660106474,10.8218081,92.406,92.367,10.82637738]
[1772660106667,2.53499209,92.405,92.368,2.58130236]
[1772660108790,2.53499209,92.403,92.37,2.58130236]
[1772660111390,2.53499209,92.408,92.372,2.58130236]
[1772660113399,2.53499209,92.406,92.361,2.58130236]
[1772660113693,2.53499209,92.4,92.356,2.58130236]
[1772660113890,2.53499209,92.4,92.35,2.68130236]
[1772660114101,2.53499209,92.4,92.35,0.1]
[1772660115174,2.53499209,92.4,92.351,10.82825307]
[1772660115374,2.81931523,92.398,92.352,2.58130236]
[1772660115576,2.81931523,92.398,92.35,0.1]
[1772660115577,2.53499209,92.396,92.35,0.1]
[1772660115779,2.53499209,92.377,92.318,2.58130236]
[1772660115978,2.53499209,92.369,92.32,10.83185011]
[1772660116278,2.53499209,92.369,92.318,2.58130236]
[1772660117397,2.53499209,92.367,92.318,2.58130236]
[1772660118892,54.12765749,92.375,92.312,2.59130299]
[1772660118893,2.64487835,92.359,92.312,2.59130299]
[1772660119078,0.28432314,92.356,92.312,2.59130299]
[1772660119284,2.64487835,92.349,92.312,2.59130299]
[1772660119493,2.64487835,92.349,92.323,2.59130299]
[1772660119671,2.64487835,92.365,92.324,2.59130299]
[1772660120283,2.64487835,92.359,92.316,2.59130299]
[1772660122389,0.28432314,92.35,92.316,2.59130299]
[1772660122604,2.64487835,92.349,92.316,2.59130299]
[1772660124498,2.64487835,92.347,92.316,2.59130299]
[1772660126301,2.42841529,92.345,92.316,2.59130299]
[1772660127300,2.42841529,92.345,92.309,2.38008066]
[1772660127501,104.9,92.344,92.322,1e-08]
[1772660127805,2.42841529,92.343,92.322,1e-08]
[1772660128805,2.42841529,92.341,92.322,1e-08]
[1772660132220,2.42841529,92.339,92.322,1e-08]
[1772660133001,37.90340047,92.34,92.323,2.38008066]
[1772660133217,40.33181576,92.34,92.323,2.38008066]
[1772660133604,2.42841529,92.339,92.322,1e-08]
[1772660134606,10.82977755,92.338,92.322,1e-08]
[1772660134811,2.42841529,92.337,92.322,1e-08]
[1772660135208,2.42841529,92.335,92.287,0.31489215]
[1772660135404,0.28432314,92.336,92.287,0.31489215]
[1772660135405,2.42841529,92.329,92.287,0.31489215]
[1772660136421,2.42841529,92.319,92.287,0.31489215]
[1772660136721,2.42841529,92.317,92.287,0.31489215]
[1772660137308,2.42841529,92.317,92.287,2.69497281]
[1772660138912,54.14742921,92.341,92.27,0.1]
[1772660138913,2.42841529,92.315,92.271,2.38008066]
[1772660139423,10.83235842,92.316,92.271,2.38008066]
[1772660139734,10.83235842,92.316,92.27,38.03209381]
[1772660139735,10.83118514,92.326,92.274,0.28432314]
[1772660139919,10.83118514,92.326,92.275,2.38008066]
[1772660140844,54.13492815,92.362,92.285,2.38008066]
[1772660140845,2.42841529,92.343,92.285,2.38008066]
[1772660141028,13.25772373,92.342,92.287,2.38008066]
[1772660142425,2.42841529,92.341,92.289,2.38008066]
[1772660142635,10.82930844,92.342,92.289,2.38008066]
[1772660144518,2.42841529,92.345,92.291,2.38008066]
[1772660146523,2.42841529,92.343,92.293,2.38008066]
[1772660149018,2.48183641,92.341,92.295,2.43904712]
[1772660151124,2.48183641,92.339,92.297,2.43904712]
[1772660152649,2.48183641,92.364,92.3,2.72337026]
[1772660153124,10.82684624,92.363,92.308,0.28432314]
[1772660153324,10.82684624,92.363,92.315,2.43904712]
[1772660153546,2.48183641,92.362,92.315,2.43904712]
[1772660155041,2.48183641,92.36,92.317,2.43904712]
[1772660156821,10.82532259,92.376,92.319,2.43904712]
[1772660157021,37.88862907,92.376,92.319,2.43904712]
[1772660158949,1.46056974,92.375,92.319,2.43904712]
[1772660163751,10.8252497,92.377,92.324,2.72337026]
[1772660164646,2.48183641,92.391,92.331,0.28432314]
[1772660164854,2.48183641,92.391,92.344,2.43904712]
[1772660165729,10.82368221,92.39,92.337,2.72337026]
[1772660166849,27.05699719,92.398,92.344,2.43904712]
[1772660167750,2.48183641,92.397,92.344,2.43904712]
[1772660169142,2.48183641,92.395,92.346,2.43904712]
[1772660170733,10.82297934,92.396,92.352,2.43904712]
[1772660170939,10.82297934,92.396,92.354,2.43904712]
[1772660172029,104.9,92.406,92.356,2.72337026]
[1772660172030,10.82186455,92.406,92.356,2.72337026]
[1772660172234,10.8207542,92.415,92.359,2.72337026]
[1772660175160,2.48183641,92.435,92.363,2.72337026]
[1772660175467,2.48183641,92.435,92.367,2.72337026]
[1772660175643,10.81841293,92.435,92.372,2.43904712]
[1772660175966,10.81841293,92.435,92.391,0.28432314]
[1772660176259,2.48183641,92.447,92.394,2.43904712]
[1772660177039,2.48183641,92.438,92.394,2.43904712]
[1772660177247,2.48183641,92.436,92.396,2.43904712]
[1772660180154,10.81817886,92.437,92.398,2.426735]
[1772660181260,2.43642516,92.442,92.403,0.14216157]
[1772660181558,10.81754157,92.443,92.404,2.426735]
[1772660181953,11.01790521,92.44,92.404,2.426735]
[1772660182263,2.43642516,92.439,92.406,2.426735]
[1772660183541,0.2,92.44,92.409,0.28432314]
[1772660183752,2.43642516,92.453,92.415,2.426735]
[1772660184344,2.43642516,92.453,92.417,2.426735]
[1772660186368,10.81626685,92.454,92.417,2.426735]
[1772660186948,2.34461895,92.466,92.425,2.45505971]
[1772660187147,2.34461895,92.466,92.421,3.69383402]
[1772660187148,0.2,92.47,92.435,2.45505971]
[1772660188064,2.34461895,92.468,92.435,2.45505971]
[1772660189174,2.34461895,92.466,92.423,2.45505971]
[1772660189467,2.34461895,92.466,92.408,27.05369531]
[1772660189468,2.34461895,92.466,92.418,2.45505971]
[1772660189843,2.34461895,92.466,92.412,10.82104839]
[1772660190056,2.34461895,92.466,92.408,10.82156577]
[1772660190259,2.34461895,92.466,92.409,2.45505971]
[1772660191967,2.34461895,92.464,92.411,2.45505971]
[1772660194549,2.34461895,92.462,92.413,2.45505971]
[1772660196453,37.85379781,92.461,92.414,10.82087129]
[1772660196653,2.34461895,92.46,92.415,2.45505971]
[1772660200275,2.34461895,92.46,92.414,37.87304953]
[1772660200276,13.1602237,92.459,92.417,2.45505971]
[1772660200474,2.34461895,92.458,92.417,2.45505971]
[1772660200672,0.2,92.47,92.427,2.45505971]
[1772660200981,0.2,92.47,92.435,2.45505971]
[1772660201559,11.01438284,92.47,92.435,2.45505971]
[1772660202869,11.01438284,92.47,92.437,2.45505971]
[1772660204381,13.35900179,92.47,92.437,2.45505971]
[1772660205578,13.35900179,92.47,92.438,10.81806183]
[1772660205787,13.35900179,92.47,92.439,2.45505971]
[1772660207468,2.54461895,92.47,92.439,2.45505971]
[1772660207669,0.2,92.47,92.445,2.45505971]
[1772660207871,10.81247697,92.486,92.444,2.73938285]
[1772660208199,2.34461895,92.489,92.444,2.73938285]
[1772660208480,10.812962,92.482,92.444,2.73938285]
[1772660208683,10.81251633,92.486,92.444,2.73938285]
[1772660209081,10.81286257,92.483,92.444,2.73938285]
[1772660209293,2.34461895,92.489,92.444,2.73938285]
[1772660209294,11.01324643,92.48,92.444,2.73938285]
[1772660209468,0.2,92.48,92.444,2.73938285]
[1772660209665,0.2,92.48,92.455,2.4314691]
[1772660209971,2.34299602,92.478,92.455,2.4314691]
[1772660211982,0.2,92.48,92.457,2.4314691]
[1772660213767,0.2,92.48,92.458,10.81572173]
[1772660213968,0.2,92.48,92.459,2.4314691]
[1772660214364,2.54299602,92.48,92.454,2.4314691]
[1772660214775,13.35619445,92.48,92.454,2.4314691]
[1772660214975,11.01319843,92.48,92.454,2.4314691]
[1772660215370,0.2,92.48,92.454,2.4314691]
[1772660215971,0.2,92.48,92.456,2.4314691]
[1772660218472,0.2,92.48,92.432,54.09336271]
[1772660218473,0.2,92.48,92.458,2.4314691]
[1772660220590,0.2,92.48,92.46,2.4314691]
[1772660222696,0.2,92.48,92.462,2.4314691]
[1772660222898,2.34299602,92.479,92.456,10.81584014]
[1772660223092,2.34299602,92.479,92.455,2.4314691]
[1772660224194,13.15626173,92.479,92.455,2.4314691]
[1772660224495,10.81326571,92.479,92.457,2.4314691]
[1772660224689,0.2,92.48,92.459,2.4314691]
[1772660224890,10.81326571,92.479,92.459,2.4314691]
[1772660226298,2.34299602,92.504,92.461,2.71579224]
[1772660226475,2.34299602,92.504,92.464,2.71579224]
[1772660227088,2.34299602,92.504,92.449,10.81677465]
[1772660227287,37.83579265,92.505,92.39,43.29453071]
[1772660227288,2.34299602,92.499,92.435,2.4314691]
[1772660227494,2.34299602,92.489,92.435,2.4314691]
[1772660228501,2.34299602,92.487,92.435,2.4314691]
[1772660229397,2.34299602,92.479,92.43,10.81895551]
[1772660229799,2.34299602,92.479,92.431,2.4314691]
[1772660230604,2.34299602,92.477,92.433,2.4314691]
[1772660230784,2.34299602,92.477,92.435,2.4314691]
[1772660234105,2.34299602,92.475,92.436,10.8182959]
[1772660234285,2.34299602,92.475,92.402,0.29684124]
[1772660234485,2.34299602,92.475,92.424,2.4314691]
[1772660236711,2.34299602,92.473,92.426,2.4314691]
[1772660238801,2.40556666,92.471,92.428,2.318906]
[1772660239200,2.40556666,92.471,92.427,10.81934932]
[1772660239413,2.40556666,92.471,92.428,2.318906]
[1772660240612,2.40556666,92.471,92.423,2.318906]
[1772660241605,2.40556666,92.469,92.425,2.318906]
[1772660242913,2.40556666,92.467,92.427,2.318906]
[1772660243916,10.81455206,92.468,92.427,2.318906]
[1772660244216,10.81414357,92.472,92.435,2.318906]
[1772660245109,2.40556666,92.471,92.437,2.318906]
[1772660247300,10.81431815,92.47,92.439,2.43850856]
[1772660247621,2.45081601,92.469,92.439,2.43850856]
[1772660248521,2.45081601,92.469,92.438,10.81806183]
[1772660248813,2.45081601,92.469,92.438,13.25657039]
[1772660249017,2.45081601,92.469,92.439,2.43850856]
[1772660250201,2.45081601,92.484,92.441,2.43850856]
[1772660250403,2.45081601,92.484,92.445,2.43850856]
[1772660250404,2.45081601,92.483,92.445,2.43850856]
[1772660251007,2.45081601,92.483,92.421,0.28432314]
[1772660251212,2.45081601,92.483,92.424,2.43850856]
[1772660252911,2.45081601,92.481,92.426,2.43850856]
[1772660253725,2.45081601,92.481,92.415,0.28432314]
[1772660253928,2.45081601,92.481,92.407,0.28432314]
[1772660254332,2.45081601,92.481,92.41,3.69383402]
[1772660254535,2.45081601,92.481,92.423,0.28432314]
[1772660255514,10.81314878,92.48,92.424,37.86895178]
[1772660255717,10.81314878,92.48,92.434,0.14216157]
[1772660256032,10.81314878,92.48,92.445,2.43850856]
[1772660256210,13.26396479,92.48,92.445,2.43850856]
[1772660256817,2.45081601,92.479,92.445,2.43850856]
[1772660258031,13.26419865,92.478,92.447,2.43850856]
[1772660258628,2.45081601,92.489,92.452,0.28432314]
[1772660258833,27.02583448,92.505,92.455,2.43850856]
[1772660258834,2.45081601,92.496,92.455,2.43850856]
[1772660260316,37.83620167,92.504,92.457,2.43850856]
[1772660260317,2.45081601,92.494,92.457,2.43850856]
[1772660262335,2.45081601,92.492,92.459,2.43850856]
[1772660264134,2.45081601,92.492,92.458,10.81572173]
[1772660264339,2.45081601,92.505,92.456,2.43850856]
[1772660265836,2.45081601,92.502,92.458,2.43850856]
[1772660267937,2.84633631,92.506,92.466,2.43850856]
[1772660268129,0.3955203,92.506,92.466,2.43850856]
[1772660268632,2.69229736,92.506,92.466,2.43850856]
[1772660268817,2.29677706,92.504,92.466,2.43850856]
[1772660270230,2.29677706,92.502,92.468,2.54453826]
[1772660271826,2.29677706,92.502,92.47,2.54453826]
[1772660274330,2.29677706,92.512,92.478,2.54453826]
[1772660276729,2.29677706,92.51,92.479,10.81326571]
[1772660277846,2.29677706,92.508,92.479,10.81326571]
[1772660279451,10.80975905,92.509,92.479,10.81326571]
[1772660279452,2.29677706,92.506,92.479,10.81326571]
[1772660281146,2.29677706,92.506,92.48,2.54453826]
[1772660281340,10.80951287,92.512,92.482,2.54453826]
[1772660281537,2.29677706,92.524,92.482,2.54453826]
[1772660281850,2.29677706,92.533,92.486,2.54453826]
[1772660282028,10.80690429,92.534,92.486,2.54453826]
[1772660282662,10.80690429,92.534,92.496,2.54453826]
[1772660283350,13.10368135,92.534,92.496,2.54453826]
[1772660283642,2.29677706,92.538,92.498,2.8288614]
[1772660283853,10.80625466,92.539,92.498,2.8288614]
[1772660284057,54.01552086,92.566,92.498,2.8288614]
[1772660284058,2.29677706,92.559,92.504,2.54453826]
[1772660284228,2.29677706,92.559,92.5,3.69383402]
[1772660284229,2.29677706,92.559,92.516,2.54453826]
[1772660284432,104.9,92.606,92.514,2.54453826]
[1772660284433,2.29677706,92.567,92.514,2.54453826]
[1772660284630,2.29677706,92.562,92.526,2.54453826]
[1772660285638,43.19770124,92.598,92.5,2.54453826]
[1772660285639,37.81862187,92.547,92.5,2.54453826]
[1772660287125,30.0,92.526,92.5,2.54453826]
[1772660287660,30.0,92.526,92.502,2.54453826]
[1772660288040,0.2,92.525,92.506,2.54453826]
[1772660288242,0.2,92.525,92.502,0.28432314]
[1772660288962,2.62383741,92.543,92.502,0.28432314]
[1772660289139,2.62383741,92.541,92.502,0.28432314]
[1772660290831,2.62383741,92.541,92.505,0.02107925]
[1772660292345,2.62383741,92.539,92.504,0.28432314]
[1772660292551,2.62383741,92.539,92.505,0.02943569]
[1772660293550,2.62383741,92.539,92.507,0.03769614]
[1772660294752,2.62383741,92.568,92.51,0.04661141]
[1772660295848,2.62383741,92.568,92.512,0.0509924]
[1772660296042,2.62383741,92.566,92.512,0.0509924]
[1772660297841,2.62383741,92.566,92.52,0.05960398]
[1772660298748,0.2,92.57,92.524,0.06801888]
[1772660299862,0.2,92.57,92.529,0.07215398]
[1772660300061,2.82383741,92.57,92.529,0.07215398]
[1772660300268,2.62383741,92.568,92.524,37.82802299]
[1772660300643,2.62383741,92.568,92.525,0.28432314]
[1772660302651,2.62383741,92.566,92.527,0.28432314]
[1772660303370,2.62383741,92.566,92.528,0.08427648]
[1772660303864,0.2,92.57,92.529,2.58884455]
[1772660304045,0.2,92.57,92.547,2.58884455]
[1772660304652,0.2,92.57,92.549,2.58884455]
[1772660304852,0.2,92.6,92.549,2.58884455]
[1772660305153,10.8008401,92.586,92.549,2.58884455]
[1772660305470,10.80118114,92.583,92.549,2.58884455]
[1772660306010,2.44081438,92.578,92.549,2.58884455]
[1772660307966,2.44081438,92.578,92.55,10.80497028]
[1772660308172,2.44081438,92.576,92.535,0.28432314]
[1772660309746,10.80205238,92.575,92.536,10.80660499]
[1772660309973,2.44081438,92.574,92.537,0.28432314]
[1772660312155,2.44081438,92.572,92.538,10.80637143]
[1772660312478,2.44081438,92.579,92.547,2.56556133]
[1772660313782,2.44081438,92.579,92.548,10.80520378]
[1772660315464,2.44081438,92.579,92.549,2.56556133]
[1772660315876,2.44081438,92.579,92.55,13.37053161]
[1772660316184,2.44081438,92.579,92.55,40.38295732]
[1772660317278,2.44081438,92.579,92.551,2.56556133]
[1772660317976,2.44081438,92.579,92.545,0.28432314]
[1772660318282,2.44081438,92.579,92.545,2.84988447]
[1772660320189,2.44081438,92.579,92.548,2.56556133]
[1772660321268,2.44081438,92.577,92.548,2.56556133]
[1772660322367,2.44081438,92.577,92.54,2.56556133]
[1772660322582,2.44081438,92.577,92.527,3.69383402]
[1772660322583,2.44081438,92.575,92.536,0.28432314]
[1772660323888,2.44081438,92.575,92.536,2.84988447]
[1772660324381,2.44081438,92.575,92.538,2.84988447]
[1772660324582,0.2,92.58,92.538,2.84988447]
[1772660324765,0.2,92.58,92.546,2.56556133]
[1772660324965,0.2,92.58,92.558,2.56556133]
[1772660325579,2.44081438,92.596,92.559,2.84988447]
[1772660326371,2.44081438,92.596,92.561,0.14216157]
[1772660326581,2.44081438,92.596,92.561,2.84988447]
[1772660327180,2.44081438,92.596,92.56,10.80380293]
[1772660327386,2.44081438,92.594,92.553,3.69383402]
[1772660327780,2.44081438,92.594,92.554,3.69383402]
[1772660328896,2.52274552,92.592,92.555,10.80438658]
[1772660331384,10.80018576,92.591,92.555,10.80438658]
[1772660331578,2.52274552,92.59,92.546,11.08976043]
[1772660331777,2.52274552,92.59,92.546,10.80543729]
[1772660333588,104.9,92.599,92.544,2.56345351]
[1772660333589,2.52274552,92.588,92.544,2.56345351]
[1772660333773,2.52274552,92.588,92.548,2.56345351]
[1772660333972,2.52274552,92.588,92.558,2.56345351]
[1772660334190,2.52274552,92.595,92.558,2.56345351]
[1772660334674,0.2,92.6,92.568,2.56345351]
[1772660335887,0.2,92.6,92.57,2.56345351]
[1772660336088,2.72274552,92.6,92.57,2.56345351]
[1772660337207,0.2,92.61,92.571,2.84777665]
[1772660337670,1e-08,92.61,92.573,2.84777665]
[1772660337994,1e-08,92.61,92.575,2.84777665]
[1772660338883,2.52274553,92.61,92.575,2.84777665]
[1772660339095,1e-08,92.61,92.575,2.84777665]
[1772660339788,1e-08,92.61,92.587,2.56345351]
[1772660339996,1e-08,92.61,92.588,10.8005357]
[1772660340802,1e-08,92.61,92.578,14.49553636]
[1772660341098,1e-08,92.61,92.573,10.80217276]
[1772660342887,1e-08,92.61,92.565,2.84777665]
[1772660346016,1e-08,92.61,92.567,0.28432314]
[1772660347091,1e-08,92.61,92.567,2.56345351]
[1772660349803,1e-08,92.61,92.568,10.80286924]
[1772660350297,1e-08,92.61,92.555,27.01084346]
[1772660350298,2.52274552,92.609,92.555,10.80438658]
[1772660351003,2.52274552,92.599,92.546,10.80543729]
[1772660352093,2.52274552,92.593,92.536,10.80660499]
[1772660354881,2.80706866,92.589,92.523,10.80812338]
[1772660355405,2.80706866,92.589,92.524,2.56345351]
[1772660357212,2.52274552,92.579,92.517,2.56345351]
[1772660358500,0.28432314,92.578,92.517,2.56345351]
[1772660358695,2.7055472,92.569,92.515,10.80905799]
[1772660359406,2.7055472,92.567,92.512,2.62646698]
[1772660361807,2.7055472,92.565,92.513,10.80929166]
[1772660362008,2.7055472,92.565,92.514,2.62646698]
[1772660364609,2.7055472,92.563,92.516,2.62646698]
[1772660366592,2.61845135,92.561,92.518,2.77580146]
[1772660366809,2.61845135,92.561,92.509,2.77580146]
[1772660370907,2.61845135,92.559,92.511,2.77580146]
[1772660371613,2.61845135,92.559,92.51,10.8096422]
[1772660372618,2.61845135,92.559,92.494,3.69383402]
[1772660372619,2.61845135,92.553,92.5,2.77580146]
[1772660373817,0.28432314,92.554,92.502,2.77580146]
[1772660373818,2.61845135,92.551,92.502,2.77580146]
[1772660376810,142.71739599,92.55,92.502,2.77580146]
[1772660377014,2.61845135,92.549,92.502,2.77580146]
[1772660377604,2.61845135,92.549,92.497,10.81111313]
[1772660377920,2.61845135,92.549,92.497,13.58691459]
[1772660378225,2.61845135,92.549,92.498,2.77580146]
[1772660379030,2.61845135,92.547,92.5,2.77580146]
[1772660382831,2.61845135,92.545,92.501,10.81069393]
[1772660383035,2.61845135,92.545,92.502,2.77580146]
[1772660383334,10.80482294,92.552,92.508,2.77580146]
[1772660383523,10.80482294,92.552,92.504,3.69383402]
[1772660383524,10.80482294,92.552,92.511,2.77580146]
[1772660383834,2.61845135,92.558,92.511,2.77580146]
[1772660384340,13.42260372,92.558,92.511,2.77580146]
[1772660384632,2.61845135,92.557,92.511,2.77580146]
[1772660387035,43.20092224,92.591,92.511,2.77580146]
[1772660387036,2.61845135,92.593,92.535,2.77580146]
[1772660387220,4.03531181,92.64,92.512,183.18001606]
[1772660387221,2.61845135,92.601,92.556,0.28432314]
[1772660387417,2.61845135,92.601,92.557,2.77580146]
[1772660388330,2.61845135,92.601,92.559,2.77580146]
[1772660388517,2.61845135,92.601,92.558,38.09845048]
[1772660388518,2.61845135,92.601,92.567,2.56393478]
[1772660389916,2.67999681,92.599,92.567,2.56393478]
[1772660390932,2.67999681,92.599,92.568,10.80286924]
[1772660391124,2.67999681,92.599,92.569,2.56393478]
[1772660391324,10.79936931,92.598,92.569,2.56393478]
[1772660391531,2.67999681,92.597,92.569,2.56393478]
[1772660392732,2.67999681,92.597,92.57,10.80263584]
[1772660393124,2.67999681,92.595,92.57,10.80263584]
[1772660393734,2.67999681,92.595,92.553,2.56393478]
[1772660396824,2.67999681,92.593,92.555,2.56393478]
[1772660397836,2.67999681,92.591,92.557,2.56393478]
[1772660400139,2.67999681,92.589,92.558,10.80403638]
[1772660400439,2.67999681,92.589,92.551,0.23961268]
[1772660400740,2.67999681,92.589,92.553,2.56393478]
[1772660400937,2.67999681,92.589,92.552,10.80473679]
[1772660401241,2.67999681,92.589,92.551,0.23961268]
[1772660403946,2.67999681,92.587,92.551,0.23961268]
[1772660405243,2.67999681,92.587,92.537,10.80647898]
[1772660405430,2.67999681,92.583,92.525,2.56393478]
[1772660405745,2.67999681,92.572,92.525,2.56393478]
[1772660405958,2.67999681,92.57,92.496,2.56393478]
[1772660406442,2.67999681,92.57,92.505,0.28432314]
[1772660406650,2.67999681,92.57,92.508,2.56393478]
[1772660406826,37.808817,92.571,92.508,2.56393478]
[1772660406827,2.67999681,92.562,92.508,2.56393478]
[1772660407847,2.67999681,92.56,92.51,2.56393478]
[1772660410065,2.67999681,92.552,92.501,10.81069393]
[1772660410227,2.67999681,92.542,92.501,10.81069393]
[1772660410431,2.67999681,92.542,92.485,0.17202496]
[1772660410432,2.67999681,92.542,92.493,2.56393478]
[1772660410630,2.67999681,92.542,92.493,13.37553448]
[1772660411237,2.67999681,92.542,92.494,2.56393478]
[1772660411750,2.67999681,92.54,92.495,13.37532999]
[1772660412744,2.67999681,92.54,92.496,2.56393478]
[1772660413851,2.67999681,92.538,92.496,2.56393478]
[1772660415541,2.67999681,92.536,92.496,2.56393478]
[1772660417334,2.67999681,92.536,92.497,10.81116144]
[1772660417856,2.67999681,92.532,92.473,2.56393478]